bitfinex-derivatives/quotes_SOLF0:USTF0_20250625
["timestamp","ask_amount","ask_price","bid_price","bid_amount"]
[1750829906384,34.62,145.32,145.3,2.18147939]
[1750829907393,34.62,145.32,145.31,6.8783]
[1750829910808,34.62,145.32,145.31,9.05977939]
[1750829911001,36.78147939,145.35,145.32,6.8775]
[1750829911402,34.6,145.35,145.33,6.8772]
[1750829912004,34.6,145.35,145.32,9.05907939]
[1750829912806,43.65807939,145.35,145.32,6.8776]
[1750829912999,2.18147939,145.33,145.29,43.64027939]
[1750829913205,9.05907939,145.33,145.29,9.04027939]
[1750829913506,2.18147939,145.33,145.29,9.06067939]
[1750829913707,2.18147939,145.31,145.28,8.53667989]
[1750829914008,9.05997939,145.31,145.27,10.71815928]
[1750829914308,9.05997939,145.31,145.26,34.58]
[1750829914309,2.18147939,145.3,145.26,10.71815928]
[1750829914807,2.18147939,145.3,145.28,6.8796]
[1750829915902,9.06027939,145.3,145.27,6.88]
[1750829916110,4.97838444,145.29,145.27,6.88]
[1750829916407,9.06027939,145.3,145.27,6.88]
[1750829916608,4.98009916,145.29,145.27,6.88]
[1750829916799,9.06027939,145.3,145.27,6.88]
[1750829916999,4.98009916,145.29,145.27,6.88]
[1750829917200,9.06027939,145.3,145.27,6.88]
[1750829917508,4.98013655,145.29,145.27,6.88]
[1750829917707,9.06027939,145.3,145.27,6.88]
[1750829917906,4.97808984,145.29,145.27,6.88]
[1750829918108,9.06027939,145.3,145.27,6.88]
[1750829918313,4.97808938,145.29,145.27,6.88]
[1750829918508,9.06027939,145.3,145.27,6.88]
[1750829918710,4.97808938,145.29,145.27,6.88]
[1750829918907,2.18147939,145.3,145.28,6.8797]
[1750829920914,43.63997939,145.31,145.28,6.8797]
[1750829921114,4.95949276,145.3,145.28,6.8797]
[1750829921315,43.63997939,145.31,145.28,6.8797]
[1750829921514,4.95949287,145.3,145.28,6.8797]
[1750829921715,43.63997939,145.31,145.28,6.8797]
[1750829921917,4.95901629,145.3,145.28,6.8797]
[1750829922113,43.63997939,145.31,145.28,6.8797]
[1750829924122,36.76147939,145.31,145.29,6.8792]
[1750829924704,36.76147939,145.31,145.3,6.8787]
[1750829924905,39.5363995,145.31,145.3,6.8787]
[1750829925107,39.53631763,145.31,145.3,6.8787]
[1750829925610,39.53631763,145.31,145.29,6.879]
[1750829925903,34.58,145.31,145.29,6.879]
[1750829926805,34.58,145.31,145.27,2.18147939]
[1750829927010,4.95504213,145.33,145.3,9.06017939]
[1750829927219,4.95514145,145.32,145.3,9.06017939]
[1750829927517,9.05907939,145.33,145.3,6.8787]
[1750829928217,4.95435631,145.32,145.3,6.8787]
[1750829928416,9.05907939,145.33,145.3,6.8787]
[1750829930307,4.95435726,145.32,145.3,6.8787]
[1750829930507,9.05907939,145.33,145.3,6.8787]
[1750829930719,4.95446766,145.32,145.3,6.8787]
[1750829930917,9.05907939,145.33,145.3,6.8787]
[1750829931114,4.95832116,145.32,145.3,6.8787]
[1750829931317,9.05907939,145.33,145.3,6.8787]
[1750829931520,4.95832266,145.32,145.3,6.8787]
[1750829931722,9.05907939,145.33,145.3,6.8787]
[1750829931923,4.95832116,145.32,145.3,6.8787]
[1750829932119,2.18147939,145.33,145.31,6.8783]
[1750829932718,36.78147939,145.34,145.3,2.18147939]
[1750829932921,7.14029979,145.33,145.3,2.18147939]
[1750829933217,2.18147939,145.33,145.29,2.18147939]
[1750829933618,2.18147939,145.33,145.3,6.8783]
[1750829934524,4.95954521,145.32,145.3,6.8783]
[1750829934815,9.05897939,145.33,145.3,6.8783]
[1750829935018,4.9604798,145.32,145.3,6.8783]
[1750829935220,9.05897939,145.33,145.3,6.8783]
[1750829935420,4.96804476,145.32,145.3,6.8783]
[1750829935721,9.05897939,145.33,145.3,6.8783]
[1750829935921,4.96804476,145.32,145.3,6.8783]
[1750829936121,9.05897939,145.33,145.3,6.8783]
[1750829936310,4.96818856,145.32,145.3,6.8783]
[1750829936511,9.05897939,145.33,145.3,6.8783]
[1750829936715,4.96819867,145.32,145.3,6.8783]
[1750829936922,9.05897939,145.33,145.3,6.8783]
[1750829937529,2.18147939,145.31,145.28,8.53667989]
[1750829937724,2.18147939,145.3,145.27,8.53667989]
[1750829937921,2.18147939,145.29,145.25,10.71815928]
[1750829938112,9.06027939,145.3,145.26,6.8803]
[1750829938317,4.97093618,145.29,145.26,6.8803]
[1750829938524,9.06027939,145.3,145.26,6.8803]
[1750829938816,4.97081839,145.29,145.26,6.8803]
[1750829939020,9.06027939,145.3,145.26,6.8803]
[1750829939220,4.9707291,145.29,145.26,6.8803]
[1750829939410,9.06027939,145.3,145.26,6.8803]
[1750829939613,4.96687374,145.29,145.26,6.8803]
[1750829939914,9.06027939,145.3,145.26,6.8803]
[1750829940221,4.96555211,145.29,145.26,6.8803]
[1750829940423,9.06027939,145.3,145.27,6.8801]
[1750829940620,4.96555166,145.29,145.27,6.8801]
[1750829940816,2.18147939,145.28,145.25,8.53667989]
[1750829941021,2.18147939,145.27,145.24,8.53667989]
[1750829942225,2.18147939,145.28,145.24,10.71815928]
[1750829942726,2.18147939,145.28,145.26,6.8803]
[1750829943520,36.74147939,145.3,145.27,6.8802]
[1750829943725,4.9680504,145.29,145.27,6.8802]
[1750829944026,36.74147939,145.3,145.27,6.8802]
[1750829944221,4.96804692,145.29,145.27,6.8802]
[1750829944421,36.74147939,145.3,145.27,6.8802]
[1750829944619,4.94875775,145.29,145.27,6.8802]
[1750829944825,36.74147939,145.3,145.27,6.8802]
[1750829945025,4.95176068,145.29,145.27,6.8802]
[1750829945224,43.62027939,145.3,145.27,6.8802]
[1750829945417,7.13324007,145.29,145.27,6.8802]
[1750829945614,2.18147939,145.29,145.27,6.8802]
[1750829945825,4.9511014,145.28,145.27,6.8802]
[1750829946022,4.95110096,145.28,145.25,8.53667989]
[1750829946220,2.18147939,145.28,145.25,8.53667989]
[1750829946525,2.18147939,145.27,145.24,8.53667989]
[1750829946726,2.18147939,145.27,145.24,15.41787989]
[1750829947827,2.18147939,145.27,145.25,6.8811]
[1750829948226,6.88,145.28,145.25,6.8811]
[1750829949623,4.95232819,145.27,145.25,6.8811]
[1750829949838,6.88,145.28,145.25,6.8811]
[1750829950031,4.95232819,145.27,145.25,6.8811]
[1750829950231,6.88,145.28,145.25,6.8811]
[1750829950427,6.8802,145.27,145.24,6.8813]
[1750829956932,6.8799,145.28,145.24,6.8813]
[1750829957132,4.94182681,145.27,145.24,6.8813]
[1750829957337,6.8799,145.28,145.24,6.8813]
[1750829957528,4.94182019,145.27,145.24,6.8813]
[1750829957733,6.8799,145.28,145.24,6.8813]
[1750829957935,4.94103015,145.27,145.24,6.8813]
[1750829958134,6.8799,145.28,145.24,6.8813]
[1750829958335,4.94103194,145.27,145.24,6.8813]
[1750829958636,6.8799,145.28,145.24,6.8813]
[1750829958835,4.94099725,145.27,145.24,6.8813]
[1750829959034,6.8799,145.28,145.24,6.8813]
[1750829959238,4.94048429,145.27,145.24,6.8813]
[1750829959431,6.8799,145.28,145.24,6.8813]
[1750829959636,6.8799,145.28,145.25,6.881]
[1750829960135,10.29007896,145.29,145.26,6.8806]
[1750829960336,4.94037193,145.28,145.26,6.8806]
[1750829960537,37.97067896,145.3,145.26,6.8806]
[1750829960735,4.94076763,145.29,145.27,6.8801]
[1750829961035,4.94076763,145.28,145.23,11.94735885]
[1750829961231,44.84987896,145.3,145.23,11.94735885]
[1750829961537,4.94111046,145.29,145.26,6.8802]
[1750829961837,44.84987896,145.3,145.26,6.8802]
[1750829962037,4.94143651,145.29,145.26,6.8802]
[1750829962236,44.84987896,145.3,145.26,6.8802]
[1750829962436,4.94143531,145.29,145.26,6.8802]
[1750829962630,44.84987896,145.3,145.26,6.8802]
[1750829962935,4.94156147,145.29,145.26,6.8802]
[1750829963137,44.84987896,145.3,145.26,6.8802]
[1750829963330,4.94152482,145.29,145.26,6.8802]
[1750829963530,44.84987896,145.3,145.26,6.8802]
[1750829963730,4.94203869,145.29,145.26,6.8802]
[1750829963927,44.84987896,145.3,145.26,6.8802]
[1750829964129,4.94168288,145.29,145.26,6.8802]
[1750829964330,44.84987896,145.3,145.26,6.8802]
[1750829964530,11.82120274,145.29,145.26,6.8802]
[1750829964732,6.8793,145.29,145.26,6.8802]
[1750829965840,4.942939,145.28,145.26,6.8802]
[1750829966041,6.8793,145.29,145.25,6.8809]
[1750829966437,6.8797,145.28,145.25,6.8809]
[1750829966639,6.8797,145.28,145.24,6.8813]
[1750829969044,10.29007896,145.29,145.25,6.8811]
[1750829969339,4.95162584,145.28,145.25,6.8811]
[1750829969538,10.29007896,145.29,145.25,6.8811]
[1750829969740,4.9492989,145.28,145.25,6.8811]
[1750829969928,10.29007896,145.29,145.25,6.8811]
[1750829970134,4.94973982,145.28,145.25,6.8811]
[1750829970330,2.18253311,145.28,145.25,6.8811]
[1750829970538,6.8794,145.29,145.25,6.8811]
[1750829970739,7.13207126,145.28,145.25,6.8811]
[1750829970938,2.18253311,145.28,145.25,6.8811]
[1750829971445,2.18253311,145.28,145.26,6.8806]
[1750829972649,9.06223311,145.28,145.26,6.8806]
[1750829973443,9.06223311,145.28,145.25,6.8809]
[1750829973639,9.06273311,145.27,145.22,15.283513]
[1750829974549,9.06273311,145.27,145.23,15.41837989]
[1750829975258,9.06273311,145.27,145.23,17.600913]
[1750829975544,7.12872186,145.26,145.22,17.601613]
[1750829975851,2.18253311,145.25,145.22,15.41907989]
[1750829977949,2.18253311,145.25,145.23,6.8819]
[1750829978148,43.58333311,145.26,145.23,6.8819]
[1750829981456,41.4008,145.26,145.23,6.8819]
[1750829981660,43.58333311,145.26,145.23,6.8819]
[1750829982162,34.52,145.26,145.24,6.8814]
[1750829982460,4.91329162,145.25,145.24,6.8814]
[1750829982661,4.91329547,145.25,145.24,6.8814]
[1750829984852,7.09582858,145.25,145.24,6.8814]
[1750829985564,2.18253311,145.25,145.24,6.8814]
[1750829985760,36.70253311,145.26,145.24,6.8814]
[1750829986060,34.52,145.26,145.25,6.8811]
[1750829986250,39.43378471,145.26,145.25,6.8811]
[1750829986451,4.91378471,145.26,145.25,6.8811]
[1750829986654,36.70253311,145.29,145.28,6.8797]
[1750829987858,34.52,145.29,145.28,6.8797]
[1750829988057,2.18253311,145.31,145.27,2.18253311]
[1750829988660,2.18253311,145.31,145.3,6.8787]
[1750829988861,2.18253311,145.31,145.27,10.719213]
[1750829989062,2.18253311,145.31,145.29,6.8789]
[1750829992467,2.18253311,145.31,145.3,6.8787]
[1750829992671,36.70253311,145.32,145.28,2.18253311]
[1750829993064,43.58033311,145.32,145.3,6.8787]
[1750829993264,2.18253311,145.31,145.28,2.18253311]
[1750829993464,2.18253311,145.31,145.27,10.719213]
[1750829993764,2.18253311,145.31,145.28,6.8796]
[1750829993964,2.18253311,145.3,145.28,6.8796]
[1750829998374,2.18253311,145.31,145.29,6.8792]
[1750829998575,43.58033311,145.32,145.29,6.8792]
[1750830001475,43.58033311,145.32,145.3,6.8786]
[1750830001676,36.70253311,145.32,145.3,6.8786]
[1750830002670,34.52,145.32,145.31,6.8783]
[1750830002869,34.52,145.32,145.29,2.18253311]
[1750830003069,36.70253311,145.32,145.28,2.18253311]
[1750830003269,36.70253311,145.32,145.3,6.8785]
[1750830006377,43.58033311,145.32,145.3,6.8785]
[1750830007577,36.70253311,145.32,145.3,6.8785]
[1750830008179,9.30688027,145.31,145.3,6.8785]
[1750830008383,4.94105219,145.31,145.3,6.8785]
[1750830008875,7.1235853,145.31,145.27,2.18253311]
[1750830009070,2.18253311,145.31,145.27,2.18253311]
[1750830009574,9.06083311,145.31,145.28,6.8794]
[1750830011374,9.06123311,145.3,145.25,10.719213]
[1750830012482,2.18253311,145.29,145.28,6.8797]
[1750830018890,6.8785,145.31,145.28,6.8797]
[1750830019094,2.18253311,145.29,145.28,6.8797]
[1750830020792,2.18253311,145.3,145.28,6.8797]
[1750830021993,2.18253311,145.29,145.24,10.719213]
[1750830022195,2.18253311,145.28,145.24,10.719213]
[1750830023095,2.18253311,145.26,145.24,8.53667989]
[1750830024201,2.18253311,145.26,145.23,68.61186693]
[1750830025300,2.18253311,145.26,145.25,6.8811]
[1750830025895,2.18253311,145.27,145.25,6.8811]
[1750830026597,2.18253311,145.27,145.26,6.8806]
[1750830031209,36.66253311,145.28,145.27,6.8802]
[1750830035718,45.9306766,145.28,145.27,6.8802]
[1750830036618,36.66253311,145.28,145.27,6.8802]
[1750830036920,36.66253311,145.28,145.26,6.8804]
[1750830037117,2.18253311,145.27,145.26,6.8804]
[1750830037910,36.66253311,145.28,145.26,6.8804]
[1750830038223,36.66253311,145.28,145.27,6.8802]
[1750830045127,2.18253311,145.29,145.28,6.8797]
[1750830049327,34.44,145.31,145.29,6.8791]
[1750830049527,7.10018513,145.3,145.29,6.8791]
[1750830052331,7.11227682,145.3,145.29,6.8791]
[1750830054438,7.11227682,145.3,145.28,6.8795]
[1750830054735,4.93327994,145.29,145.28,6.8795]
[1750830055139,4.93357735,145.29,145.28,6.8795]
[1750830058242,2.18253311,145.3,145.29,6.8792]
[1750830058443,7.11615472,145.3,145.29,6.8792]
[1750830061342,2.18253311,145.3,145.29,6.8792]
[1750830061647,7.11693324,145.3,145.29,6.8792]
[1750830062043,4.93440013,145.3,145.29,6.8792]
[1750830062347,34.44,145.31,145.3,6.8787]
[1750830062547,39.37428316,145.31,145.3,6.8787]
[1750830063242,41.55681627,145.31,145.29,6.879]
[1750830063444,11.4400149,145.3,145.24,8.57413506]
[1750830063640,34.44,145.31,145.22,15.0437357]
[1750830063641,2.18317573,145.26,145.23,8.57413506]
[1750830063846,2.18317573,145.25,145.23,8.57413506]
[1750830064046,2.18324296,145.26,145.23,8.57413506]
[1750830064246,2.18324296,145.26,145.24,8.57413506]
[1750830064442,34.38,145.29,145.23,10.75737802]
[1750830064649,2.18324296,145.28,145.25,8.57413506]
[1750830064844,2.18324296,145.28,145.26,6.8802]
[1750830065243,2.18324296,145.28,145.25,8.57413506]
[1750830065544,2.18324296,145.28,145.27,6.8802]
[1750830066343,7.12576524,145.28,145.27,6.8802]
[1750830066544,2.18324296,145.28,145.27,6.8802]
[1750830066944,36.56324296,145.29,145.28,6.8797]
[1750830067150,2.18324296,145.3,145.26,2.18324296]
[1750830067347,2.18324296,145.3,145.29,6.8792]
[1750830067744,41.258,145.32,145.29,6.8792]
[1750830067945,2.18324296,145.3,145.29,6.8792]
[1750830070456,36.56324296,145.32,145.28,2.18324296]
[1750830070745,36.56324296,145.32,145.27,2.18324296]
[1750830071349,36.56324296,145.32,145.3,6.8785]
[1750830072652,2.18324296,145.31,145.3,6.8785]
[1750830073250,2.18324296,145.31,145.26,2.18324296]
[1750830073449,2.18324296,145.29,145.24,9.04524296]
[1750830073646,2.18324296,145.28,145.24,9.04524296]
[1750830074054,2.18324296,145.27,145.26,6.8803]
[1750830075854,2.18324296,145.28,145.27,6.8801]
[1750830076053,2.18324296,145.29,145.27,6.8801]
[1750830076253,6.8788,145.3,145.27,6.8801]
[1750830076557,4.96223454,145.29,145.27,6.8801]
[1750830076756,3.4094563,145.31,145.28,6.8794]
[1750830076959,4.96257415,145.3,145.28,6.8794]
[1750830077257,4.96257415,145.29,145.28,6.8794]
[1750830077754,10.2879563,145.31,145.28,6.8794]
[1750830077958,4.96365703,145.3,145.28,6.8794]
[1750830078155,10.2879563,145.31,145.28,6.8794]
[1750830078458,4.9636745,145.3,145.28,6.8794]
[1750830078760,10.2879563,145.31,145.28,6.8794]
[1750830079058,4.95213435,145.3,145.28,6.8794]
[1750830079256,10.2879563,145.31,145.28,6.8794]
[1750830079455,4.95213435,145.3,145.28,6.8794]
[1750830079655,10.2879563,145.31,145.28,6.8794]
[1750830079958,4.95216461,145.3,145.28,6.8794]
[1750830080255,10.2879563,145.31,145.28,6.8794]
[1750830080452,4.9521278,145.3,145.28,6.8794]
[1750830080653,10.2879563,145.31,145.28,6.8794]
[1750830080954,4.95297467,145.3,145.28,6.8794]
[1750830081160,10.2879563,145.31,145.28,6.8794]
[1750830081357,4.95343392,145.3,145.28,6.8794]
[1750830081561,10.2879563,145.31,145.28,6.8794]
[1750830081760,4.95457669,145.3,145.28,6.8794]
[1750830081960,10.2879563,145.31,145.28,6.8794]
[1750830082157,4.95457531,145.3,145.28,6.8794]
[1750830082358,10.2879563,145.31,145.28,6.8794]
[1750830082564,4.95461213,145.3,145.28,6.8794]
[1750830082751,10.2879563,145.31,145.28,6.8794]
[1750830082956,9.29512738,145.3,145.28,6.8794]
[1750830083158,4.95429082,145.29,145.28,6.8794]
[1750830083461,4.95429082,145.29,145.27,6.8799]
[1750830083662,6.8788,145.3,145.27,6.8799]
[1750830083857,4.9549894,145.29,145.27,6.8799]
[1750830084058,6.8788,145.3,145.27,6.8799]
[1750830084259,4.95499109,145.29,145.27,6.8799]
[1750830084460,6.8788,145.3,145.27,6.8799]
[1750830084658,4.95499101,145.29,145.27,6.8799]
[1750830084862,6.8788,145.3,145.27,6.8799]
[1750830085058,4.95626845,145.29,145.27,6.8799]
[1750830085261,6.8788,145.3,145.27,6.8799]
[1750830085461,4.95626845,145.29,145.27,6.8799]
[1750830085661,6.8788,145.3,145.27,6.8799]
[1750830085856,4.95626845,145.29,145.27,6.8799]
[1750830086157,6.8788,145.3,145.27,6.8799]
[1750830086361,4.95626845,145.29,145.27,6.8799]
[1750830086562,6.8788,145.3,145.27,6.8799]
[1750830086762,4.95626755,145.29,145.27,6.8799]
[1750830086963,6.8788,145.3,145.27,6.8799]
[1750830087154,4.95622791,145.29,145.27,6.8799]
[1750830087355,10.2879563,145.31,145.27,6.8799]
[1750830087559,9.3016858,145.3,145.28,6.8797]
[1750830087867,4.95622791,145.29,145.28,6.8797]
[1750830088260,4.95622791,145.29,145.27,6.8799]
[1750830088463,10.2879563,145.31,145.27,6.8799]
[1750830088762,9.30350894,145.3,145.27,6.8799]
[1750830089066,4.95720266,145.29,145.27,6.8799]
[1750830089267,10.2879563,145.31,145.27,6.8799]
[1750830089467,9.30021316,145.3,145.27,6.8799]
[1750830089669,4.95364272,145.29,145.27,6.8799]
[1750830089968,10.2879563,145.31,145.27,6.8799]
[1750830090168,9.30014528,145.3,145.27,6.8799]
[1750830090371,4.95354518,145.29,145.27,6.8799]
[1750830090666,4.34651281,145.3,145.27,6.8799]
[1750830090868,4.95364872,145.29,145.27,6.8799]
[1750830091063,6.8787,145.3,145.27,6.8799]
[1750830091263,4.9537717,145.29,145.27,6.8799]
[1750830091463,6.8787,145.3,145.27,6.8799]
[1750830091666,4.95359446,145.29,145.27,6.8799]
[1750830091866,10.2879563,145.31,145.28,6.8797]
[1750830092065,9.30012083,145.3,145.28,6.8797]
[1750830092266,4.95359356,145.29,145.28,6.8797]
[1750830093262,10.2879563,145.31,145.28,6.8797]
[1750830093463,9.2966142,145.3,145.28,6.8797]
[1750830093667,4.95335209,145.29,145.28,6.8797]
[1750830096174,10.2879563,145.31,145.28,6.8797]
[1750830096376,2.18217816,145.29,145.28,6.8797]
[1750830096570,7.13716638,145.29,145.28,6.8797]
[1750830099377,7.13180442,145.29,145.28,6.8797]
[1750830104181,7.13180442,145.29,145.26,8.57098195]
[1750830104480,2.18217816,145.27,145.24,8.57098195]
[1750830104875,2.18217816,145.26,145.24,8.57098195]
[1750830105076,2.18217816,145.26,145.25,6.8808]
[1750830106484,2.18217816,145.27,145.24,8.57098195]
[1750830106684,2.18217816,145.28,145.24,8.57098195]
[1750830106881,4.94781622,145.27,145.24,10.75316011]
[1750830107186,2.18217816,145.28,145.26,6.8802]
[1750830107385,4.9463559,145.27,145.26,6.8802]
[1750830107885,2.18217816,145.28,145.27,6.8801]
[1750830108184,7.1287388,145.28,145.27,6.8801]
[1750830108587,11.4706577,145.28,145.27,6.8801]
[1750830110089,7.1287388,145.28,145.27,6.8801]
[1750830110286,2.18217816,145.29,145.28,6.8797]
[1750830110476,7.12602003,145.29,145.28,6.8797]
[1750830114087,7.1344671,145.29,145.28,6.8797]
[1750830114480,7.13456383,145.29,145.28,6.8797]
[1750830115180,2.18217816,145.29,145.28,6.8797]
[1750830115389,7.13456535,145.29,145.28,6.8797]
[1750830116488,11.4881674,145.29,145.28,6.8797]
[1750830116983,7.13456535,145.29,145.28,6.8797]
[1750830117183,11.49244473,145.29,145.28,6.8797]
[1750830118590,11.49244473,145.29,145.27,6.8799]
[1750830118791,4.9565531,145.28,145.27,6.8799]
[1750830120089,4.95481483,145.28,145.27,6.8799]
[1750830121086,2.18217816,145.29,145.27,6.8799]
[1750830121287,6.881,145.33,145.28,10.75316011]
[1750830121489,9.30887623,145.32,145.29,2.18217816]
[1750830121690,4.95565655,145.31,145.3,6.8787]
[1750830122701,7.13783471,145.31,145.29,8.57098195]
[1750830122899,4.95251652,145.3,145.27,10.75316011]
[1750830123198,2.18217816,145.3,145.27,8.57098195]
[1750830123391,2.18217816,145.3,145.29,6.8792]
[1750830123591,7.13476474,145.3,145.29,6.8792]
[1750830124600,4.95258658,145.3,145.29,6.8792]
[1750830124798,2.18217816,145.31,145.3,6.8787]
[1750830124998,4.96074162,145.31,145.3,6.8787]
[1750830127203,9.06317816,145.33,145.31,6.8782]
[1750830127402,7.15398276,145.32,145.31,6.8782]
[1750830128801,7.15498666,145.32,145.31,6.8782]
[1750830129001,7.15333383,145.32,145.31,6.8782]
[1750830129403,4.97115567,145.32,145.31,6.8782]
[1750830129604,6.881,145.33,145.32,6.8778]
[1750830129807,11.85548249,145.33,145.32,6.8778]
[1750830132310,11.85580383,145.33,145.31,9.06017816]
[1750830132510,6.881,145.33,145.3,2.18217816]
[1750830132809,6.881,145.33,145.31,6.878]
[1750830135206,2.18217816,145.32,145.29,8.57098195]
[1750830135410,2.18217816,145.3,145.26,15.44936011]
[1750830135906,9.06117816,145.3,145.27,6.8798]
[1750830136509,9.06117816,145.3,145.28,6.8797]
[1750830136713,2.18217816,145.3,145.28,6.8797]
[1750830138209,9.06107816,145.3,145.27,6.8801]
[1750830138709,2.18217816,145.3,145.27,6.8801]
[1750830138909,2.18217816,145.3,145.26,6.87837816]
[1750830139508,9.06047816,145.31,145.28,6.8793]
[1750830140001,2.18217816,145.3,145.28,6.8793]
[1750830142918,2.18217816,145.3,145.29,6.8792]
[1750830143213,2.18217816,145.31,145.29,6.8792]
[1750830147813,6.881,145.33,145.29,2.18217816]
[1750830148114,6.881,145.33,145.26,13.26718195]
[1750830148115,9.06317816,145.33,145.3,2.18217816]
[1750830148918,9.06317816,145.33,145.29,2.18217816]
[1750830149214,9.06317816,145.33,145.31,6.878]
[1750830150516,9.06317816,145.33,145.32,6.8778]
[1750830150818,6.881,145.33,145.32,6.8778]
[1750830152017,11.83966635,145.33,145.32,6.8778]
[1750830152618,11.8400197,145.33,145.32,6.8778]
[1750830154718,6.881,145.33,145.32,6.8778]
[1750830156320,6.881,145.33,145.31,9.06027816]
[1750830156515,6.881,145.33,145.31,6.8781]
[1750830157420,13.7583,145.33,145.31,6.8781]
[1750830158407,6.881,145.33,145.31,6.8781]
[1750830162027,6.881,145.33,145.32,6.8778]
[1750830164521,11.85359948,145.33,145.32,6.8778]
[1750830164925,11.85359948,145.33,145.31,6.878]
[1750830165126,6.881,145.33,145.31,6.878]
[1750830166129,6.881,145.33,145.32,6.8778]
[1750830166830,11.85176607,145.33,145.32,6.8778]
[1750830167016,11.85159574,145.33,145.32,6.8778]
[1750830167831,6.881,145.33,145.32,6.8778]
[1750830171333,11.84869146,145.33,145.32,6.8778]
[1750830171833,6.881,145.33,145.32,6.8778]
[1750830172032,11.84895253,145.33,145.32,6.8778]
[1750830172234,6.881,145.33,145.32,6.8778]
[1750830172634,11.84898931,145.33,145.31,6.878]
[1750830172833,6.881,145.33,145.31,6.878]
[1750830176533,6.881,145.33,145.32,6.8778]
[1750830176732,11.84873992,145.33,145.32,6.8778]
[1750830179342,11.84920081,145.33,145.32,6.8778]
[1750830182246,11.85055496,145.33,145.32,6.8778]
[1750830184139,6.881,145.33,145.32,6.8778]
[1750830184950,6.881,145.33,145.32,9.05997816]
[1750830186744,6.881,145.35,145.34,6.8768]
[1750830187651,36.38217816,145.37,145.33,2.18217816]
[1750830187849,6.882,145.36,145.33,2.18217816]
[1750830188560,6.882,145.36,145.33,10.75316011]
[1750830188751,6.882,145.34,145.33,10.75316011]
[1750830189257,6.882,145.34,145.33,15.44828195]
[1750830189450,6.882,145.34,145.33,17.63046011]
[1750830189953,6.882,145.36,145.34,6.8764]
[1750830190158,6.882,145.36,145.33,10.75316011]
[1750830190749,36.38217816,145.37,145.33,10.75316011]
[1750830190948,4.98355638,145.36,145.33,10.75316011]
[1750830191149,34.2,145.37,145.33,8.57098195]
[1750830191355,4.98360717,145.36,145.33,10.75316011]
[1750830191548,34.2,145.37,145.33,10.75316011]
[1750830191753,4.98362605,145.36,145.33,10.75316011]
[1750830192058,2.18217816,145.39,145.34,2.18217816]
[1750830192264,4.98389328,145.38,145.35,2.18217816]
[1750830192462,38.8817,145.4,145.36,9.05807816]
[1750830192463,4.98389328,145.37,145.36,9.05807816]
[1750830192760,36.38217816,145.4,145.35,2.18217816]
[1750830192956,9.30301564,145.39,145.37,6.8751]
[1750830193155,9.30301564,145.38,145.37,6.8751]
[1750830193361,4.98438444,145.38,145.37,6.8751]
[1750830194954,4.98438444,145.38,145.37,9.05727816]
[1750830195454,36.36217816,145.43,145.41,6.8733]
[1750830195657,4.31837244,145.42,145.39,2.18217816]
[1750830195855,4.31358015,145.42,145.39,2.18217816]
[1750830196056,36.36217816,145.43,145.42,6.8731]
[1750830196458,40.6758929,145.43,145.42,6.8731]
[1750830196658,36.36217816,145.43,145.42,6.8731]
[1750830196858,40.6758929,145.43,145.42,6.8731]
[1750830197050,36.36217816,145.43,145.42,6.8731]
[1750830197857,2.18217816,145.45,145.39,8.57098195]
[1750830198056,2.18217816,145.45,145.41,2.18217816]
[1750830198268,36.36217816,145.46,145.42,2.18217816]
[1750830198566,36.36217816,145.46,145.43,6.8723]
[1750830198766,36.36217816,145.46,145.39,8.57098195]
[1750830198767,2.18217816,145.44,145.4,2.18217816]
[1750830199457,2.18217816,145.44,145.43,6.8723]
[1750830199661,2.18217816,145.45,145.4,2.18217816]
[1750830199865,2.18217816,145.45,145.41,2.18217816]
[1750830200559,36.36217816,145.46,145.42,2.18217816]
[1750830200761,34.18,145.46,145.4,34.18]
[1750830200955,138.89407105,145.52,145.4,34.18]
[1750830200956,138.89407105,145.52,145.45,2.18217816]
[1750830201155,34.18,145.57,145.51,2.18217816]
[1750830201367,34.18,145.6,145.53,2.18217816]
[1750830201667,36.36217816,145.6,145.55,2.18217816]
[1750830201869,36.36217816,145.6,145.52,34.18]
[1750830202074,34.18,145.6,145.52,34.18]
[1750830202257,2.18217816,145.59,145.52,34.18]